bitfinex-derivatives/quotes_BNBF0:USTF0_20250630
["timestamp","ask_amount","ask_price","bid_price","bid_amount"]
[1751286279753,3.7981463,654.83,653.98,1.1071772]
[1751286279951,3.7981463,654.83,653.99,1.1071772]
[1751286280150,3.7981463,654.83,654.0,1.1071772]
[1751286280358,3.7981463,654.83,654.01,1.1071772]
[1751286280555,3.7981463,654.83,654.02,1.1071772]
[1751286280855,3.7981463,654.83,654.03,1.1071772]
[1751286281155,3.7981463,654.83,654.04,1.1088224]
[1751286281355,3.7981463,654.82,653.85,1.1402621]
[1751286281553,3.7981463,654.82,653.86,1.1088224]
[1751286281757,3.7981463,654.82,653.87,1.1088224]
[1751286281957,3.7981463,654.84,653.88,1.1088224]
[1751286282152,3.7981463,654.84,653.84,1.1402621]
[1751286282153,3.7981463,654.84,653.89,1.1088224]
[1751286282452,3.7981463,654.83,653.9,1.1088224]
[1751286282655,3.7981463,654.83,653.91,1.1088224]
[1751286282853,3.7981463,654.83,653.92,1.1088224]
[1751286283052,3.7981463,654.81,653.93,1.1088224]
[1751286283251,3.7981463,654.81,653.94,1.1088224]
[1751286283551,3.7981463,654.81,653.95,1.1088224]
[1751286283850,3.7981463,654.81,653.96,1.1088224]
[1751286284049,3.7981463,654.81,653.97,1.1088224]
[1751286284252,3.7981463,654.81,653.86,1.1402621]
[1751286284253,3.7981463,654.81,653.98,1.1088224]
[1751286284455,3.7981463,654.88,653.99,1.1088224]
[1751286284655,3.7981463,654.88,654.0,1.1088224]
[1751286284853,3.7981463,654.88,654.01,1.1088224]
[1751286285156,3.7981463,654.88,654.02,1.1088224]
[1751286285353,3.7981463,654.88,654.03,1.1088224]
[1751286285551,3.7981463,654.88,654.04,1.1088224]
[1751286285855,3.7981463,654.88,654.05,1.1088224]
[1751286286055,3.7981463,654.88,654.02,1.544]
[1751286286252,3.7981463,654.88,654.03,1.1091868]
[1751286286557,3.7981463,654.88,654.04,1.1091868]
[1751286286751,3.7981463,654.88,654.05,1.1091868]
[1751286287054,3.7981463,654.88,654.02,1.544]
[1751286287352,3.7981463,654.88,654.03,1.1091862]
[1751286287557,3.7981463,654.88,654.04,1.1091862]
[1751286287856,3.7981463,654.99,654.05,1.1091862]
[1751286288055,3.7981463,654.99,654.02,1.544]
[1751286288254,3.7981463,654.99,654.03,1.1091956]
[1751286288451,3.7981463,654.99,654.04,1.1091956]
[1751286288656,3.7981463,654.99,654.05,1.1091956]
[1751286288953,3.7981463,654.99,654.02,1.544]
[1751286289157,3.7981463,654.99,654.03,1.1091957]
[1751286289359,3.7981463,654.99,654.04,1.1091957]
[1751286289555,3.7981463,654.99,654.05,1.1091957]
[1751286289752,3.7981463,654.99,654.02,1.544]
[1751286289955,3.7981463,654.99,654.03,1.1092011]
[1751286290153,3.7981463,655.0,654.04,1.1092011]
[1751286290353,3.7981463,655.0,654.05,1.1092011]
[1751286290655,3.7981463,655.0,654.02,1.544]
[1751286290856,3.7981463,655.0,654.03,1.1092004]
[1751286291057,3.7981463,655.0,654.04,1.1092004]
[1751286291254,3.7981463,655.24,654.05,1.1092004]
[1751286291458,3.7981463,655.24,654.02,1.544]
[1751286291657,3.7981463,655.23,654.03,1.1092]
[1751286291855,3.7981463,655.23,654.04,1.1092]
[1751286292058,3.7981463,655.23,654.05,1.1092]
[1751286292256,3.7981463,655.24,654.02,1.544]
[1751286292459,3.7981463,655.24,654.03,1.1091996]
[1751286292656,3.7981463,655.24,654.04,1.1091996]
[1751286292860,3.7981463,655.24,654.05,1.1091996]
[1751286293061,3.7981463,655.24,654.02,1.544]
[1751286293260,3.7981463,655.24,654.03,1.1091995]
[1751286293460,3.7981463,655.24,654.04,1.1091995]
[1751286293657,3.7981463,655.24,654.05,1.1091995]
[1751286293864,3.7981463,655.24,654.02,1.544]
[1751286294162,3.7981463,655.24,654.03,1.1091992]
[1751286294359,3.7981463,655.24,654.02,1.544]
[1751286294360,3.7981463,655.29,654.04,1.1091992]
[1751286294560,3.7981463,655.29,654.05,1.1091992]
[1751286294758,3.7981463,655.3,654.06,1.1091992]
[1751286294959,3.7981463,655.3,654.02,1.544]
[1751286295164,3.7981463,655.3,654.03,1.10919796]
[1751286295364,3.7981463,655.3,654.04,1.10919796]
[1751286295663,3.7981463,655.3,654.05,1.10919796]
[1751286295964,0.26577058,655.34,654.06,1.10919796]
[1751286296163,0.26577058,655.34,654.02,1.544]
[1751286296164,0.26577058,655.34,654.07,1.10919796]
[1751286296459,0.26577058,655.34,654.08,1.10919796]
[1751286296660,0.26577058,655.34,654.09,1.10919796]
[1751286296859,0.26577058,655.34,654.1,1.10919796]
[1751286297163,0.26577058,655.34,654.02,1.544]
[1751286297164,0.26577058,655.34,654.11,1.10919796]
[1751286297364,0.26577058,655.34,654.02,1.544]
[1751286297665,0.26577058,655.34,654.03,1.1086576]
[1751286297861,0.26577058,655.34,654.04,1.1086576]
[1751286298166,0.26577058,655.34,654.05,1.1086576]
[1751286298366,0.26577058,655.34,654.06,1.1086576]
[1751286298563,0.26577058,655.34,654.07,1.1086576]
[1751286298863,0.26577058,655.34,654.08,1.1086576]
[1751286299062,0.26577058,655.34,654.09,1.1086576]
[1751286299260,0.26577058,655.34,654.1,1.1086576]
[1751286299463,0.26577058,655.34,654.11,1.1086576]
[1751286299659,0.26577058,655.34,654.12,1.1086576]
[1751286299861,0.26577058,655.34,654.13,1.1086576]
[1751286300064,0.26577058,655.34,654.14,1.1086576]
[1751286300265,0.26577058,655.34,654.15,1.1086576]
[1751286300466,0.26577058,655.34,654.16,1.1086576]
[1751286300665,0.26577058,655.34,654.17,1.1086576]
[1751286300862,0.26577058,655.34,654.02,1.544]
[1751286301165,0.26577058,655.34,654.03,1.1074855]
[1751286301364,0.26577058,655.34,654.04,1.1074855]
[1751286301365,4.06391688,655.34,654.04,1.1074855]
[1751286301660,4.06391688,655.34,654.05,1.1074855]
[1751286301860,4.06391688,655.34,654.06,1.1074855]
[1751286302060,4.06391688,655.34,654.07,1.1074855]
[1751286302266,4.06391688,655.34,654.08,1.1074855]
[1751286302466,0.26577058,655.34,654.09,1.1074855]
[1751286302664,0.26577058,655.34,654.1,1.1074855]
[1751286302968,0.26577058,655.34,654.11,1.1074855]
[1751286303169,0.26577058,655.34,654.12,1.1074855]
[1751286303366,0.26577058,655.34,654.13,1.1074855]
[1751286303566,0.26577058,655.34,654.14,1.1074855]
[1751286303764,0.26577058,655.34,654.02,1.544]
[1751286303969,0.26577058,655.34,654.03,1.1067618]
[1751286304166,0.26577058,655.34,654.04,1.1067618]
[1751286304370,0.26577058,655.34,654.05,1.1067618]
[1751286304569,0.26577058,655.34,654.06,1.1067618]
[1751286304769,0.26577058,655.34,654.07,1.1067618]
[1751286304970,0.26577058,655.34,654.08,1.1067618]
[1751286305265,0.26577058,655.34,654.02,1.544]
[1751286305266,0.26577058,655.34,654.09,1.1067618]
[1751286305470,0.26577058,655.34,654.1,1.1067618]
[1751286305671,0.26577058,655.34,654.11,1.1067618]
[1751286305869,0.26577058,655.34,654.12,1.1067618]
[1751286306068,0.26577058,655.34,654.13,1.1067618]
[1751286306270,0.26577058,655.34,654.02,1.544]
[1751286306468,3.7981463,655.28,654.03,1.1062997]
[1751286306770,3.7981463,655.28,654.04,1.1062997]
[1751286306971,3.7981463,655.28,654.05,1.1062997]
[1751286307169,3.7981463,655.28,654.06,1.1062997]
[1751286307369,3.7981463,655.28,654.07,1.1062997]
[1751286307568,3.7981463,655.28,654.08,1.1062997]
[1751286307868,3.7981463,655.28,654.09,1.1062997]
[1751286308067,3.7981463,655.17,654.1,1.1062997]
[1751286308267,3.7981463,655.17,654.11,1.1062997]
[1751286308567,3.7981463,655.17,654.12,1.1062997]
[1751286308768,3.7981463,655.17,654.02,1.544]
[1751286308967,3.7981463,655.17,654.03,1.1055618]
[1751286309170,3.7981463,655.17,654.04,1.1055618]
[1751286309369,3.7981463,655.17,654.05,1.1055618]
[1751286309568,3.7981463,655.17,654.06,1.1055618]
[1751286309767,3.7981463,655.17,654.07,1.1055618]
[1751286309972,3.7981463,655.17,654.08,1.1055618]
[1751286310173,3.7981463,655.17,654.09,1.1055618]
[1751286310471,3.7981463,655.17,654.1,1.1055618]
[1751286310670,3.7981463,655.17,654.11,1.1055618]
[1751286310871,3.7981463,655.17,654.02,1.544]
[1751286311072,3.7981463,655.17,654.03,1.10536]
[1751286311269,3.7981463,655.17,654.04,1.10536]
[1751286311469,3.7981463,655.17,654.05,1.10536]
[1751286311673,3.7981463,655.17,654.06,1.10536]
[1751286311870,3.7981463,655.17,654.07,1.10536]
[1751286312068,3.7981463,655.17,654.08,1.10536]
[1751286312272,3.7981463,655.17,654.09,1.10536]
[1751286312470,3.7981463,655.17,654.1,1.10536]
[1751286312774,3.7981463,655.17,654.11,1.10536]
[1751286312973,3.7981463,655.17,654.02,1.544]
[1751286313170,3.7981463,655.17,654.03,1.105189]
[1751286313374,3.7981463,655.17,654.04,1.105189]
[1751286313572,3.7981463,655.17,654.05,1.105189]
[1751286313771,3.7981463,655.17,654.06,1.105189]
[1751286313975,3.7981463,655.17,654.07,1.105189]
[1751286314172,3.7981463,655.17,654.08,1.105189]
[1751286314372,3.7981463,655.17,654.09,1.105189]
[1751286314572,3.7981463,655.17,654.1,1.105189]
[1751286314771,3.7981463,655.17,654.02,1.544]
[1751286315075,3.7981463,655.17,654.03,1.1050476]
[1751286315371,3.7981463,655.07,654.04,1.1050476]
[1751286315575,3.7981463,655.07,654.05,1.1050476]
[1751286315776,0.26577058,655.34,654.06,1.1050476]
[1751286316072,0.26577058,655.34,654.07,1.1050476]
[1751286316272,0.26577058,655.34,654.08,1.1050476]
[1751286316471,0.26577058,655.34,654.09,1.1050476]
[1751286316675,0.26577058,655.34,654.02,1.544]
[1751286316676,0.26577058,655.34,654.1,1.1050476]
[1751286316878,0.26577058,655.34,654.11,1.1050476]
[1751286317078,0.26577058,655.34,654.02,1.544]
[1751286317276,0.26577058,655.34,654.03,1.1048442]
[1751286317472,0.26577058,655.34,654.04,1.1048442]
[1751286317677,0.26577058,655.34,654.05,1.1048442]
[1751286317977,0.26577058,655.34,654.06,1.1048442]
[1751286318177,0.26577058,655.34,654.07,1.1048442]
[1751286318375,0.26577058,655.34,654.08,1.1048442]
[1751286318578,0.26577058,655.34,654.09,1.1048442]
[1751286318878,0.26577058,655.34,654.1,1.1048442]
[1751286319076,0.26577058,655.34,654.11,1.1048442]
[1751286319276,0.26577058,655.34,654.02,1.544]
[1751286319576,0.26577058,655.34,654.03,1.1047389]
[1751286319776,0.26577058,655.34,654.04,1.1047389]
[1751286319978,0.26577058,655.34,654.05,1.1047389]
[1751286320179,0.26577058,655.34,654.06,1.1047389]
[1751286320478,0.26577058,655.34,654.07,1.1047389]
[1751286320775,0.26577058,655.34,654.08,1.1047389]
[1751286320976,0.26577058,655.34,654.09,1.1047389]
[1751286321175,0.26577058,655.34,654.1,1.1047389]
[1751286321475,0.26577058,655.34,654.11,1.1047389]
[1751286321678,0.26577058,655.34,654.02,1.544]
[1751286321880,0.26577058,655.34,654.03,1.1046651]
[1751286322074,0.26577058,655.34,654.04,1.1046651]
[1751286322278,0.26577058,655.34,654.05,1.1046651]
[1751286322478,0.26577058,655.34,654.06,1.1046651]
[1751286322674,0.26577058,655.34,654.07,1.1046651]
[1751286322872,0.26577058,655.34,654.08,1.1046651]
[1751286323076,0.26577058,655.34,654.09,1.1046651]
[1751286323275,0.26577058,655.34,654.1,1.1046651]
[1751286323476,0.26577058,655.34,654.02,1.544]
[1751286323679,0.26577058,655.34,654.03,1.1046132]
[1751286323978,0.26577058,655.34,654.04,1.1046132]
[1751286324176,0.26577058,655.34,654.05,1.1046132]
[1751286324479,0.26577058,655.34,654.06,1.1046132]
[1751286324674,0.26577058,655.34,654.07,1.1046132]
[1751286324876,0.26577058,655.34,654.08,1.1046132]
[1751286325075,0.26577058,655.34,654.09,1.1046132]
[1751286325280,0.26577058,655.34,654.1,1.1046132]
[1751286325476,0.26577058,655.34,654.02,1.544]
[1751286325777,0.26577058,655.34,654.03,1.1045807]
[1751286326076,0.26577058,655.34,654.04,1.1045807]
[1751286326277,0.26577058,655.34,654.05,1.1045807]
[1751286326481,0.26577058,655.34,654.06,1.1045807]
[1751286326681,0.26577058,655.34,654.07,1.1045807]
[1751286326881,0.26577058,655.34,654.08,1.1045807]
[1751286327082,0.26577058,655.34,654.09,1.1045807]
[1751286327381,0.26577058,655.34,654.1,1.1045807]
[1751286327582,0.26577058,655.34,654.0,2.824]
[1751286327781,0.26577058,655.34,654.01,1.1045701]
[1751286327979,0.26577058,655.34,654.02,1.1045701]
[1751286328178,0.26577058,655.34,654.03,1.1045701]
[1751286328379,0.26577058,655.34,654.04,1.1045701]
[1751286328677,3.7981463,655.29,654.05,1.1045701]
[1751286328879,3.7981463,655.29,654.06,1.1045701]
[1751286329079,3.7981463,655.31,654.07,1.1045701]
[1751286329381,3.7981463,655.31,654.08,1.1045701]
[1751286329580,3.7981463,655.31,654.0,2.824]
[1751286329780,3.7981463,655.31,654.01,1.1045797]
[1751286329984,3.7981463,655.31,654.02,1.1045797]
[1751286330281,3.7981463,655.27,654.03,1.1045797]
[1751286330581,3.7981463,655.28,654.04,1.1045797]
[1751286331684,3.7981463,655.29,654.04,1.1045797]
[1751286332080,3.7981463,655.27,654.04,1.1045797]
[1751286332583,3.7981463,655.25,654.04,1.1045797]
[1751286333284,3.7981463,655.24,654.04,1.1045797]
[1751286334790,3.7981463,655.21,654.04,1.1045797]
[1751286335789,3.7981463,655.2,654.04,1.1045797]
[1751286336786,3.7981463,655.24,654.04,1.1045797]
[1751286337893,3.7981463,655.26,654.04,1.1045797]
[1751286338188,3.7981463,655.26,654.05,1.1045797]
[1751286338492,3.7981463,655.24,654.06,1.1045797]
[1751286338688,3.7981463,655.24,654.07,1.1045797]
[1751286338988,3.7981463,655.22,654.08,1.1045797]
[1751286339187,3.7981463,655.22,654.09,1.1045797]
[1751286339491,3.7981463,655.21,654.1,1.1045797]
[1751286339687,3.7981463,655.21,654.11,1.1045797]
[1751286339992,3.7981463,655.21,654.03,2.235]
[1751286340193,3.7981463,655.21,654.04,1.1054382]
[1751286340391,3.7981463,655.21,654.05,1.1054382]
[1751286340592,3.7981463,655.21,654.06,1.1054382]
[1751286340892,3.7981463,655.25,654.07,1.1054382]
[1751286341090,3.7981463,655.25,654.08,1.1054382]
[1751286341289,3.7981463,655.25,654.09,1.1054382]
[1751286341488,3.7981463,655.25,654.1,1.1054382]
[1751286341693,3.7981463,655.25,654.11,1.1054382]
[1751286341891,3.7981463,655.22,654.12,1.1054382]
[1751286342190,3.7981463,655.22,654.03,2.235]
[1751286342389,3.7981463,655.24,654.04,1.1055817]
[1751286342589,3.7981463,655.24,654.05,1.1055817]
[1751286342889,3.7981463,655.24,654.06,1.1055817]
[1751286343093,3.7981463,655.24,654.07,1.1055817]
[1751286343394,3.7981463,655.24,654.08,1.1055817]
[1751286343595,3.7981463,655.23,654.09,1.1055817]
[1751286343796,3.7981463,655.23,654.1,1.1055817]
[1751286343992,3.7981463,655.23,654.11,1.1055817]
[1751286344192,3.7981463,655.23,654.12,1.1055817]
[1751286344397,3.7981463,655.23,654.13,1.1055817]
[1751286344693,3.7981463,655.23,654.03,2.235]
[1751286344897,3.7981463,655.23,654.04,1.1058205]
[1751286345097,3.7981463,655.22,654.05,1.1058205]
[1751286345398,3.7981463,655.22,654.06,1.1058205]
[1751286345594,3.7981463,655.22,654.07,1.1058205]
[1751286345796,3.7981463,655.22,654.08,1.1058205]
[1751286345994,3.7981463,655.22,654.09,1.1058205]
[1751286346195,3.7981463,655.22,654.1,1.1058205]
[1751286346395,3.7981463,655.22,654.11,1.1058205]
[1751286346695,3.7981463,655.18,654.12,1.1058205]
[1751286346899,3.7981463,655.18,654.13,1.1058205]
[1751286347099,3.7981463,655.18,654.14,1.1061553]
[1751286347299,3.7981463,655.18,654.03,2.235]
[1751286347497,3.7981463,655.18,654.04,1.1061553]
[1751286347796,3.7981463,655.18,654.05,1.1061553]
[1751286348099,3.7981463,655.18,654.06,1.1061553]
[1751286348300,3.7981463,655.18,654.07,1.1061553]
[1751286348596,3.7981463,655.18,654.08,1.1061553]
[1751286348795,3.7981463,655.18,654.09,1.1061553]
[1751286349002,3.7981463,655.18,654.1,1.1061553]
[1751286349301,3.7981463,655.18,654.11,1.1061553]
[1751286349496,3.7981463,655.18,654.03,2.235]
[1751286349497,3.7981463,655.18,654.12,1.1061553]
[1751286349796,3.7981463,655.18,654.13,1.1061553]
[1751286349999,3.7981463,655.18,654.14,1.1061553]
[1751286350198,3.7981463,655.18,654.15,1.1061553]
[1751286350398,3.7981463,655.17,654.03,2.235]
[1751286350600,3.7981463,655.17,654.04,1.1066081]
[1751286350796,3.7981463,655.17,654.05,1.1066081]
[1751286351003,3.7981463,655.17,654.06,1.1066081]
[1751286351196,3.7981463,655.17,654.07,1.1066081]
[1751286351398,3.7981463,655.17,654.08,1.1066081]
[1751286351597,3.7981463,655.17,654.09,1.1066081]
[1751286351801,3.7981463,655.17,654.1,1.1066081]
[1751286351997,3.7981463,655.17,654.03,2.235]
[1751286351998,3.7981463,655.14,654.11,1.1066081]
[1751286352300,3.7981463,655.14,654.12,1.1066081]
[1751286352500,3.7981463,655.14,654.13,1.1066081]
[1751286352698,3.7981463,655.14,654.14,1.1066081]
[1751286352900,3.7981463,655.14,654.15,1.1066081]
[1751286353102,3.7981463,655.14,654.16,1.1066081]
[1751286353401,3.7981463,655.14,654.17,1.1066081]
[1751286353600,3.7981463,655.13,653.95,1.1402621]
[1751286353800,3.7981463,655.13,653.96,1.1072629]
[1751286354101,3.7981463,655.12,653.97,1.1072629]
[1751286354302,3.7981463,655.12,653.98,1.1072629]
[1751286354502,3.7981463,655.12,653.99,1.1072629]
[1751286354703,3.7981463,655.12,654.0,1.1072629]
[1751286354900,3.7981463,655.12,654.01,1.1072629]
[1751286355203,3.7981463,655.1,654.02,1.1072629]
[1751286355502,3.7981463,655.1,654.03,1.1072629]
[1751286355697,3.7981463,655.1,654.04,1.1072629]
[1751286355900,3.7981463,655.1,654.05,1.1072629]
[1751286356097,3.7981463,655.09,654.06,1.1072629]
[1751286356302,3.7981463,655.09,654.07,1.1072629]
[1751286356602,3.7981463,655.08,654.08,1.1072629]
[1751286356802,3.7981463,655.08,654.09,1.1072629]
[1751286356999,3.7981463,655.08,654.1,1.1072629]
[1751286357198,3.7981463,655.08,654.11,1.1072629]
[1751286357497,3.7981463,655.08,654.12,1.1072629]
[1751286357699,3.7981463,655.08,654.13,1.1072629]
[1751286357999,3.7981463,655.08,654.14,1.1072629]
[1751286358199,3.7981463,655.06,654.15,1.1072629]
[1751286358400,3.7981463,655.06,654.16,1.1072629]
[1751286358598,3.7981463,655.06,654.17,1.1072629]
[1751286358799,3.7981463,655.08,654.18,1.1072629]
[1751286359001,3.7981463,655.08,654.19,1.1072629]
[1751286359201,3.7981463,655.08,654.2,1.1072629]
[1751286359400,3.7981463,655.08,654.21,1.1072629]
[1751286359603,3.7981463,655.08,654.1,2.062]
[1751286359801,3.7981463,655.08,654.11,1.1088173]
[1751286360001,3.7981463,655.08,654.12,1.1088173]
[1751286360202,3.7981463,655.08,654.13,1.1088173]
[1751286360400,3.7981463,655.08,654.14,1.1088173]
[1751286360599,3.7981463,655.08,654.15,1.1088173]
[1751286360800,3.7981463,655.0,654.16,1.1088173]
[1751286361106,3.7981463,655.0,654.17,1.1088173]
[1751286361300,3.7981463,654.99,654.18,1.1088173]
[1751286361501,3.7981463,654.99,654.19,1.1088173]
[1751286361701,3.7981463,654.99,654.2,1.1088173]
[1751286361904,3.7981463,655.05,654.21,1.1088173]
[1751286362105,3.7981463,655.05,654.1,2.062]
[1751286362306,3.7981463,655.09,654.11,1.1088278]
[1751286362505,3.7981463,655.09,654.12,1.1088278]
[1751286362706,3.7981463,655.09,654.13,1.1088278]
[1751286362909,5.3174048,655.33,654.14,1.1088278]
[1751286363110,5.3174048,655.33,654.15,1.1088278]
[1751286363409,5.3174048,655.33,654.16,1.1088278]
[1751286363606,5.3174048,655.33,654.1,2.062]
[1751286363607,0.26577058,655.34,654.17,1.1088278]
[1751286363909,0.26577058,655.34,654.18,1.1088278]
[1751286364110,0.26577058,655.34,654.19,1.1088278]
[1751286364308,0.26577058,655.34,654.2,1.1088278]
[1751286364508,0.26577058,655.34,654.21,1.1088278]
[1751286364708,0.26577058,655.34,654.22,1.1088278]
[1751286364911,0.26577058,655.34,654.1,2.062]
[1751286365106,0.26577058,655.34,654.11,1.1088382]
[1751286365408,0.26577058,655.34,654.12,1.1088382]
[1751286365608,0.26577058,655.34,654.13,1.1088382]
[1751286365807,0.26577058,655.34,654.14,1.1088382]
[1751286366010,0.26577058,655.34,654.15,1.1088382]
[1751286366311,0.26577058,655.34,654.16,1.1088382]
[1751286366508,0.26577058,655.34,654.17,1.1088382]
[1751286366707,0.26577058,655.34,654.18,1.1088382]
[1751286367007,0.26577058,655.34,654.19,1.1088382]
[1751286367211,0.26577058,655.34,654.2,1.1088382]
[1751286367408,0.26577058,655.34,654.21,1.1088382]
[1751286367708,0.26577058,655.34,654.22,1.1088382]
[1751286367907,0.26577058,655.34,654.1,2.062]
[1751286368112,0.26577058,655.34,654.11,1.1088576]
[1751286368311,0.26577058,655.34,654.12,1.1088576]
[1751286368608,0.26577058,655.34,654.13,1.1088576]
[1751286368809,0.26577058,655.34,654.14,1.1088576]
[1751286369008,0.26577058,655.34,654.15,1.1088576]
[1751286369210,0.26577058,655.34,654.16,1.1088576]
[1751286369406,0.26577058,655.34,654.17,1.1088576]
[1751286369609,0.26577058,655.34,654.18,1.1088576]
[1751286369811,0.26577058,655.34,654.19,1.1088576]
[1751286370012,0.26577058,655.34,654.2,1.1088576]
[1751286370210,0.26577058,655.34,654.21,1.1088576]
[1751286370414,0.26577058,655.34,654.22,1.1088576]
[1751286370613,0.26577058,655.34,654.1,2.062]
[1751286370815,0.26577058,655.34,654.11,1.1091593]
[1751286371017,0.26577058,655.34,654.12,1.1091593]
[1751286371214,0.26577058,655.34,654.13,1.1091593]
[1751286371416,0.26577058,655.34,654.14,1.1091593]
[1751286371610,0.26577058,655.34,654.15,1.1091593]
[1751286371816,0.26577058,655.34,654.16,1.1091593]
[1751286372010,0.26577058,655.34,654.17,1.1091593]
[1751286372314,0.26577058,655.34,654.18,1.1091593]
[1751286372512,0.26577058,655.34,654.19,1.1091593]
[1751286372711,3.7981463,655.3,654.2,1.1091593]
[1751286372916,3.7981463,655.3,654.21,1.1091593]
[1751286373115,3.7981463,655.32,654.22,1.1091593]
[1751286373314,3.7981463,655.32,654.1,2.062]
[1751286373516,3.7981463,655.32,654.11,1.1091961]
[1751286373815,3.7981463,655.32,654.12,1.1091961]
[1751286374119,3.7981463,655.32,654.13,1.1091961]
[1751286374324,3.7981463,655.32,654.14,1.1091961]
[1751286374520,3.7981463,655.32,654.15,1.1091961]
[1751286374720,0.26577058,655.34,654.16,1.1091961]
[1751286374924,0.26577058,655.34,654.17,1.1091961]
[1751286375121,0.26577058,655.34,654.18,1.1091961]
[1751286375320,0.26577058,655.34,654.19,1.1091961]
[1751286375526,0.26577058,655.34,654.2,1.1091961]
[1751286375726,0.26577058,655.34,654.21,1.1091961]
[1751286376021,0.26577058,655.34,654.22,1.1091961]
[1751286376222,3.7981463,655.33,654.1,2.062]
[1751286376423,3.7981463,655.33,654.11,1.1092267]
[1751286376622,3.7981463,655.33,654.12,1.1092267]
[1751286376827,3.7981463,655.31,654.13,1.1092267]
[1751286377024,3.7981463,655.31,654.14,1.1092267]
[1751286377226,3.7981463,655.31,654.15,1.1092267]
[1751286377424,3.7981463,655.31,654.16,1.1092267]
[1751286377623,3.7981463,655.31,654.17,1.1092267]
[1751286377824,3.7981463,655.3,654.18,1.1092267]
[1751286378024,3.7981463,655.3,654.19,1.1092267]
[1751286378223,3.7981463,655.32,654.2,1.1092267]
[1751286378423,3.7981463,655.32,654.21,1.1092267]
[1751286378725,0.26577058,655.34,654.22,1.1092267]
[1751286378923,0.26577058,655.34,654.1,2.062]
[1751286379125,0.26577058,655.34,654.11,1.1092392]
[1751286379325,0.26577058,655.34,654.12,1.1092392]
[1751286379524,0.26577058,655.34,654.13,1.1092392]
[1751286379725,0.26577058,655.34,654.14,1.1092392]
[1751286379928,0.26577058,655.34,654.15,1.1092392]
[1751286380228,0.26577058,655.34,654.16,1.1092392]
[1751286380526,0.26577058,655.34,654.17,1.1092392]
[1751286380729,0.26577058,655.34,654.18,1.1092392]
[1751286381028,0.26577058,655.34,654.19,1.1092392]
[1751286381329,0.26577058,655.34,654.2,1.1092392]
[1751286381626,0.26577058,655.34,654.21,1.1092392]
[1751286381824,0.26577058,655.34,654.22,1.1092392]
[1751286382128,0.26577058,655.34,654.1,2.062]
[1751286382324,0.26577058,655.34,654.11,1.1092595]
[1751286382528,0.26577058,655.34,654.12,1.1092595]
[1751286382729,0.26577058,655.34,654.13,1.1092595]
[1751286382925,0.26577058,655.34,654.14,1.1092595]
[1751286383229,0.26577058,655.34,654.15,1.1092595]
[1751286383427,0.26577058,655.34,654.16,1.1092595]
[1751286383625,0.26577058,655.34,654.17,1.1092595]
[1751286383828,3.7981463,655.68,654.18,1.1092595]
[1751286384031,0.26580712,655.05,654.19,1.1092595]
[1751286384231,0.26580712,655.05,654.2,1.1092595]
[1751286384431,3.7981463,655.6,654.21,1.1092595]
[1751286384632,0.26580509,654.84,654.22,1.1092595]
[1751286384933,3.7981463,655.6,654.1,2.062]
[1751286385133,0.26581017,654.78,654.11,1.1092741]
[1751286385332,3.7981463,655.6,654.12,1.1092741]
[1751286385629,0.26582133,654.78,654.13,1.1092741]
[1751286385834,3.7981463,655.6,654.14,1.1092741]
[1751286386029,3.7981463,655.6,654.15,1.1092741]
[1751286386235,3.7981463,655.6,654.16,1.1092741]
[1751286386435,3.7981463,655.6,654.17,1.1092741]
[1751286386630,3.7981463,655.6,654.18,1.1092741]
[1751286386930,3.7981463,655.6,654.19,1.1092741]
[1751286387132,0.26581423,655.25,654.2,1.1092741]
[1751286387331,0.26581423,655.25,654.21,1.1092741]
[1751286387635,0.26581423,655.25,654.22,1.1092741]
[1751286387832,0.26581423,655.25,654.23,1.1092741]
[1751286388032,0.26581423,655.25,654.1,2.062]
[1751286388236,0.26581423,655.25,654.11,1.1093094]
[1751286388532,3.7981463,655.2,654.12,1.1093094]
[1751286388835,3.7981463,655.2,654.13,1.1093094]
[1751286389036,3.7981463,655.23,654.14,1.1093094]
[1751286389233,3.7981463,655.23,654.1,2.062]
[1751286389234,3.7981463,655.23,654.15,1.1093094]
[1751286389433,3.7981463,655.23,654.16,1.1093094]
[1751286389638,3.7981463,655.23,654.17,1.1093094]
[1751286389837,3.7981463,655.23,654.18,1.1093094]
[1751286390135,3.7981463,655.23,654.19,1.1093094]
[1751286390339,3.7981463,655.23,654.2,1.1093094]
[1751286390539,3.7981463,655.23,654.21,1.1093094]
[1751286390738,3.7981463,655.23,654.22,1.1093094]
[1751286390935,3.7981463,655.23,654.23,1.1093362]
[1751286391137,0.26581423,655.25,654.1,2.062]
[1751286391336,0.26581423,655.25,654.11,1.1093588]
[1751286391537,0.26581423,655.25,654.12,1.1093588]
[1751286391739,0.26581423,655.25,654.13,1.1093588]
[1751286391938,0.26581423,655.25,654.14,1.1093588]
[1751286392141,0.26581423,655.25,654.15,1.1093588]
[1751286392340,0.26581423,655.25,654.16,1.1093588]
[1751286392638,0.26581423,655.25,654.17,1.1093588]
[1751286392838,0.26581423,655.25,654.18,1.1093588]
[1751286393038,0.26581423,655.25,654.19,1.1093588]